[Event "Titled Tuesday Blitz March 21 Early 2023"]
[White "Kramnik, Vladimir"]
[Black "Ingebretsen, Jens E"]
[WhiteFideId "4101588"]
[BlackFideId "1522965"]
[WhiteElo "2712"]
[BlackElo "2213"]
[Result "1-0"]
[Round "10"]
[TimeControl "180+2"]
[Date "2023.03.21"]
[WhiteClock "0:01:34"]
[BlackClock "0:00:06"]

1. e4 {[%clk 0:03:00]}  c5 {[%clk 0:02:57]} 2. Nf3 {[%clk 0:02:58]}  e6 {[%clk 0:02:58]} 3. d4 {[%clk 0:02:58]}  cxd4 {[%clk 0:02:59]} 4. Nxd4 {[%clk 0:02:57]}  Nf6 {[%clk 0:03:00]} 5. Nc3 {[%clk 0:02:57]}  Nc6 {[%clk 0:03:00]} 6. a3 {[%clk 0:02:56]}  d6 {[%clk 0:02:58]} 7. Be2 {[%clk 0:02:56]}  Be7 {[%clk 0:02:58]} 8. Be3 {[%clk 0:02:56]}  O-O {[%clk 0:02:58]} 9. f4 {[%clk 0:02:55]}  e5 {[%clk 0:02:55]} 10. Nxc6 {[%clk 0:02:39]}  bxc6 {[%clk 0:02:56]} 11. fxe5 {[%clk 0:02:39]}  dxe5 {[%clk 0:02:57]} 12. Qxd8 {[%clk 0:02:36]}  Rxd8 {[%clk 0:02:57]} 13. Rd1 {[%clk 0:02:34]}  Bg4 {[%clk 0:02:43]} 14. h3 {[%clk 0:02:31]}  Rxd1+ {[%clk 0:02:40]} 15. Kxd1 {[%clk 0:02:29]}  Be6 {[%clk 0:02:25]} 16. Kc1 {[%clk 0:02:26]}  Nd7 {[%clk 0:02:20]} 17. Rd1 {[%clk 0:02:23]}  Bc5 {[%clk 0:02:13]} 18. Bxc5 {[%clk 0:02:22]}  Nxc5 {[%clk 0:02:14]} 19. b4 {[%clk 0:02:21]}  Nd7 {[%clk 0:02:03]} 20. Ba6 {[%clk 0:02:21]}  Rb8 {[%clk 0:01:54]} 21. Na4 {[%clk 0:02:21]}  Kf8 {[%clk 0:01:50]} 22. Rd6 {[%clk 0:02:16]}  Rd8 {[%clk 0:01:11]} 23. Nc5 {[%clk 0:02:06]}  Ke7 {[%clk 0:01:10]} 24. Rxc6 {[%clk 0:02:05]}  Nxc5 {[%clk 0:01:00]} 25. Rxc5 {[%clk 0:02:05]}  Rd4 {[%clk 0:00:58]} 26. Bd3 {[%clk 0:02:02]}  Kf6 {[%clk 0:00:42]} 27. Kd2 {[%clk 0:01:55]}  Rd7 {[%clk 0:00:38]} 28. Ke3 {[%clk 0:01:54]}  h5 {[%clk 0:00:37]} 29. a4 {[%clk 0:01:54]}  Rd4 {[%clk 0:00:22]} 30. c3 {[%clk 0:01:52]}  Rd6 {[%clk 0:00:22]} 31. a5 {[%clk 0:01:49]}  a6 {[%clk 0:00:22]} 32. Rc7 {[%clk 0:01:47]}  g5 {[%clk 0:00:18]} 33. Ra7 {[%clk 0:01:47]}  Bc8 {[%clk 0:00:17]} 34. Ra8 {[%clk 0:01:45]}  Bd7 {[%clk 0:00:17]} 35. Rxa6 {[%clk 0:01:44]}  Ke7 {[%clk 0:00:12]} 36. Rxd6 {[%clk 0:01:43]}  Kxd6 {[%clk 0:00:13]} 37. c4 {[%clk 0:01:42]}  Bc8 {[%clk 0:00:09]} 38. c5+ {[%clk 0:01:40]}  Kc6 {[%clk 0:00:09]} 39. Bc4 {[%clk 0:01:37]}  f6 {[%clk 0:00:09]} 40. a6 {[%clk 0:01:35]}  Bd7 {[%clk 0:00:06]} 41. Bd5+ {[%clk 0:01:34]} 1-0


[Site "https://www.chess.com"]

[Event "Titled Tuesday Blitz March 21 Early 2023"]
[White "Amilal Munkhdalai"]
[Black "Urazayev, Arystanbek"]
[WhiteFideId "4903250"]
[BlackFideId "13709810"]
[WhiteElo "2293"]
[BlackElo "2479"]
[Result "1-0"]
[Round "10"]
[TimeControl "180+2"]
[Date "2023.03.21"]
[WhiteClock "0:00:07"]
[BlackClock "0:00:02"]

1. e4 {[%clk 0:03:00]}  e5 {[%clk 0:03:00]} 2. Nf3 {[%clk 0:03:00]}  Nc6 {[%clk 0:03:00]} 3. Bb5 {[%clk 0:03:01]}  a6 {[%clk 0:03:00]} 4. Ba4 {[%clk 0:03:01]}  Nf6 {[%clk 0:03:01]} 5. d3 {[%clk 0:03:01]}  Bc5 {[%clk 0:03:01]} 6. O-O {[%clk 0:03:01]}  d6 {[%clk 0:03:01]} 7. c3 {[%clk 0:03:01]}  O-O {[%clk 0:03:00]} 8. h3 {[%clk 0:03:01]}  Ba7 {[%clk 0:03:00]} 9. Re1 {[%clk 0:03:01]}  Ne7 {[%clk 0:02:59]} 10. Nbd2 {[%clk 0:03:00]}  Ng6 {[%clk 0:02:59]} 11. Nf1 {[%clk 0:03:00]}  c6 {[%clk 0:02:59]} 12. Be3 {[%clk 0:03:00]}  Bxe3 {[%clk 0:02:58]} 13. fxe3 {[%clk 0:02:58]}  d5 {[%clk 0:02:52]} 14. exd5 {[%clk 0:02:57]}  cxd5 {[%clk 0:02:53]} 15. d4 {[%clk 0:02:52]}  e4 {[%clk 0:02:49]} 16. N3d2 {[%clk 0:02:50]}  b5 {[%clk 0:02:44]} 17. Bb3 {[%clk 0:02:50]}  Be6 {[%clk 0:02:43]} 18. a4 {[%clk 0:02:50]}  Qd7 {[%clk 0:02:43]} 19. Qe2 {[%clk 0:02:49]}  h5 {[%clk 0:02:28]} 20. Bc2 {[%clk 0:02:47]}  h4 {[%clk 0:02:26]} 21. Nb3 {[%clk 0:02:45]}  Bf5 {[%clk 0:02:23]} 22. Nc5 {[%clk 0:02:44]}  Qc6 {[%clk 0:02:23]} 23. Rec1 {[%clk 0:02:36]}  Nd7 {[%clk 0:02:23]} 24. b4 {[%clk 0:02:36]}  Nb6 {[%clk 0:02:22]} 25. Bb3 {[%clk 0:02:33]}  Nc4 {[%clk 0:02:19]} 26. Ra2 {[%clk 0:02:30]}  Qf6 {[%clk 0:02:12]} 27. Rca1 {[%clk 0:02:27]}  Rab8 {[%clk 0:02:12]} 28. axb5 {[%clk 0:02:24]}  axb5 {[%clk 0:02:13]} 29. Qf2 {[%clk 0:02:14]}  Qg5 {[%clk 0:02:13]} 30. Bxc4 {[%clk 0:02:13]}  bxc4 {[%clk 0:02:13]} 31. Ra5 {[%clk 0:02:11]}  Bxh3 {[%clk 0:02:13]} 32. Na6 {[%clk 0:02:07]}  Rb7 {[%clk 0:02:07]} 33. Nc5 {[%clk 0:02:07]}  Re7 {[%clk 0:02:06]} 34. b5 {[%clk 0:02:04]}  Bc8 {[%clk 0:01:59]} 35. b6 {[%clk 0:02:02]}  h3 {[%clk 0:01:59]} 36. Qg3 {[%clk 0:02:00]}  Qf6 {[%clk 0:01:59]} 37. Rb1 {[%clk 0:01:38]}  hxg2 {[%clk 0:02:00]} 38. Nh2 {[%clk 0:01:38]}  Qc6 {[%clk 0:01:16]} 39. Kxg2 {[%clk 0:01:23]}  f5 {[%clk 0:01:16]} 40. Ra7 {[%clk 0:00:57]}  f4 {[%clk 0:01:04]} 41. Qg5 {[%clk 0:00:55]}  fxe3 {[%clk 0:00:29]} 42. Rxe7 {[%clk 0:00:48]}  Qd6 {[%clk 0:00:20]} 43. Re5 {[%clk 0:00:20]}  Nxe5 {[%clk 0:00:20]} 44. Qxe5 {[%clk 0:00:19]}  Qg6+ {[%clk 0:00:21]} 45. Kh1 {[%clk 0:00:20]}  Rf5 {[%clk 0:00:18]} 46. Qb8 {[%clk 0:00:17]}  Rf8 {[%clk 0:00:14]} 47. b7 {[%clk 0:00:17]}  Bxb7 {[%clk 0:00:14]} 48. Qxb7 {[%clk 0:00:17]}  Qh5 {[%clk 0:00:13]} 49. Ne6 {[%clk 0:00:15]}  Rf7 {[%clk 0:00:12]} 50. Qb8+ {[%clk 0:00:13]}  Kh7 {[%clk 0:00:13]} 51. Rg1 {[%clk 0:00:12]}  e2 {[%clk 0:00:11]} 52. Qg3 {[%clk 0:00:11]}  Re7 {[%clk 0:00:07]} 53. Ng5+ {[%clk 0:00:11]}  Kh6 {[%clk 0:00:08]} 54. Qe3 {[%clk 0:00:10]}  Ra7 {[%clk 0:00:02]} 55. Nxe4+ {[%clk 0:00:07]}  Kh7 {[%clk 0:00:01]} 56. Ng5+ {[%clk 0:00:07]}  Kh8 {[%clk 0:00:02]} 57. Nf3 {[%clk 0:00:06]}  Ra8 {[%clk 0:00:02]} 58. Qxe2 {[%clk 0:00:06]}  Rf8 {[%clk 0:00:02]} 59. Qg2 {[%clk 0:00:06]}  Rg8 {[%clk 0:00:02]} 60. Qg4 {[%clk 0:00:06]}  Qh7 {[%clk 0:00:03]} 61. Rg3 {[%clk 0:00:06]}  Qb1+ {[%clk 0:00:02]} 62. Kg2 {[%clk 0:00:05]}  Qc2+ {[%clk 0:00:02]} 63. Kg1 {[%clk 0:00:06]}  Qb1+ {[%clk 0:00:01]} 64. Nf1 {[%clk 0:00:06]}  g6 {[%clk 0:00:01]} 65. Rh3+ {[%clk 0:00:06]}  Kg7 {[%clk 0:00:01]} 66. Qd7+ {[%clk 0:00:07]}  Kf6 {[%clk 0:00:02]} 67. Qd6+ {[%clk 0:00:07]}  Kg7 {[%clk 0:00:02]} 68. Qe7# {[%clk 0:00:07]} 1-0


[Site "https://www.chess.com"]

[Event "Titled Tuesday Blitz March 21 Early 2023"]
[White "Aaditya Dhingra"]
[Black "Mikhailovsky, Vladimir"]
[WhiteFideId "25678191"]
[BlackFideId "34105414"]
[WhiteElo "2083"]
[BlackElo "2293"]
[Result "1-0"]
[Round "10"]
[TimeControl "180+2"]
[Date "2023.03.21"]
[WhiteClock "0:00:45"]
[BlackClock "0:00:01"]

1. Nf3 {[%clk 0:03:00]}  d5 {[%clk 0:02:59]} 2. e3 {[%clk 0:02:56]}  Nf6 {[%clk 0:02:54]} 3. b3 {[%clk 0:02:54]}  Bg4 {[%clk 0:02:53]} 4. Bb2 {[%clk 0:02:52]}  Nbd7 {[%clk 0:02:53]} 5. Be2 {[%clk 0:02:51]}  c6 {[%clk 0:02:49]} 6. O-O {[%clk 0:02:49]}  Qc7 {[%clk 0:02:48]} 7. d4 {[%clk 0:02:48]}  Bxf3 {[%clk 0:02:45]} 8. Bxf3 {[%clk 0:02:47]}  e5 {[%clk 0:02:46]} 9. c4 {[%clk 0:02:44]}  e4 {[%clk 0:02:44]} 10. Be2 {[%clk 0:02:44]}  Bd6 {[%clk 0:02:44]} 11. h3 {[%clk 0:02:44]}  g5 {[%clk 0:02:03]} 12. Nc3 {[%clk 0:02:40]}  g4 {[%clk 0:02:04]} 13. Bxg4 {[%clk 0:02:30]}  h5 {[%clk 0:02:01]} 14. Bf5 {[%clk 0:02:29]}  Rg8 {[%clk 0:01:47]} 15. cxd5 {[%clk 0:02:27]}  cxd5 {[%clk 0:01:47]} 16. Nb5 {[%clk 0:02:24]}  Bh2+ {[%clk 0:01:21]} 17. Kh1 {[%clk 0:02:23]}  Qb8 {[%clk 0:01:22]} 18. f4 {[%clk 0:02:05]}  a6 {[%clk 0:01:13]} 19. Nc3 {[%clk 0:01:50]}  Bg3 {[%clk 0:01:12]} 20. Ne2 {[%clk 0:01:49]}  h4 {[%clk 0:01:10]} 21. Nxg3 {[%clk 0:01:45]}  Rxg3 {[%clk 0:01:10]} 22. Re1 {[%clk 0:01:41]}  Qd6 {[%clk 0:01:05]} 23. Qc1 {[%clk 0:01:38]}  b5 {[%clk 0:01:03]} 24. a4 {[%clk 0:01:31]}  b4 {[%clk 0:01:03]} 25. Qd1 {[%clk 0:01:29]}  Ke7 {[%clk 0:01:00]} 26. Rc1 {[%clk 0:01:26]}  Rag8 {[%clk 0:01:00]} 27. Re2 {[%clk 0:01:26]}  Nh5 {[%clk 0:00:50]} 28. Rec2 {[%clk 0:01:22]}  Nhf6 {[%clk 0:00:32]} 29. Rc6 {[%clk 0:01:16]}  Qb8 {[%clk 0:00:29]} 30. R1c2 {[%clk 0:01:14]}  Rxe3 {[%clk 0:00:28]} 31. Bc1 {[%clk 0:01:07]}  Rxb3 {[%clk 0:00:26]} 32. Bd2 {[%clk 0:01:03]}  Rbg3 {[%clk 0:00:25]} 33. Be1 {[%clk 0:01:03]}  Qxf4 {[%clk 0:00:22]} 34. Bxg3 {[%clk 0:01:02]}  Rxg3 {[%clk 0:00:18]} 35. Bxd7 {[%clk 0:01:01]}  Nxd7 {[%clk 0:00:18]} 36. Qe1 {[%clk 0:01:00]}  b3 {[%clk 0:00:17]} 37. Rf2 {[%clk 0:00:57]}  Qg5 {[%clk 0:00:08]} 38. Qb4+ {[%clk 0:00:54]}  Kd8 {[%clk 0:00:06]} 39. Rxf7 {[%clk 0:00:46]}  Qc1+ {[%clk 0:00:01]} 40. Rxc1 {[%clk 0:00:45]} 1-0


[Site "https://www.chess.com"]

[Event "Titled Tuesday Blitz March 21 Early 2023"]
[White "Staudenhocker43"]
[Black "Costachi, Mihnea"]
[BlackFideId "1217518"]
[WhiteElo "2529"]
[BlackElo "2456"]
[Result "1-0"]
[Round "10"]
[TimeControl "180+2"]
[Date "2023.03.21"]
[WhiteClock "0:00:21"]
[BlackClock "0:01:20"]

1. c4 {[%clk 0:03:00]}  g6 {[%clk 0:03:00]} 2. d4 {[%clk 0:02:59]}  Bg7 {[%clk 0:03:01]} 3. e4 {[%clk 0:02:59]}  c5 {[%clk 0:03:00]} 4. d5 {[%clk 0:02:56]}  d6 {[%clk 0:03:00]} 5. Nc3 {[%clk 0:02:56]}  Nf6 {[%clk 0:02:59]} 6. Nge2 {[%clk 0:02:53]}  O-O {[%clk 0:03:00]} 7. Ng3 {[%clk 0:02:53]}  a6 {[%clk 0:03:00]} 8. Be2 {[%clk 0:02:52]}  Nbd7 {[%clk 0:03:00]} 9. O-O {[%clk 0:02:51]}  Rb8 {[%clk 0:03:00]} 10. a4 {[%clk 0:02:51]}  b6 {[%clk 0:02:54]} 11. h3 {[%clk 0:02:50]}  Qc7 {[%clk 0:02:52]} 12. Bf4 {[%clk 0:02:44]}  Ne5 {[%clk 0:02:48]} 13. Qd2 {[%clk 0:02:39]}  Re8 {[%clk 0:02:42]} 14. Bh6 {[%clk 0:02:38]}  Bh8 {[%clk 0:02:42]} 15. f4 {[%clk 0:02:37]}  Ned7 {[%clk 0:02:42]} 16. Rae1 {[%clk 0:02:36]}  e6 {[%clk 0:02:34]} 17. dxe6 {[%clk 0:02:31]}  fxe6 {[%clk 0:02:33]} 18. f5 {[%clk 0:02:24]}  exf5 {[%clk 0:02:27]} 19. exf5 {[%clk 0:02:23]}  Ne5 {[%clk 0:02:28]} 20. fxg6 {[%clk 0:02:18]}  hxg6 {[%clk 0:02:29]} 21. Nge4 {[%clk 0:02:10]}  Nxe4 {[%clk 0:02:24]} 22. Nxe4 {[%clk 0:02:10]}  Bf5 {[%clk 0:02:25]} 23. Qxd6 {[%clk 0:01:57]}  Qh7 {[%clk 0:02:23]} 24. Qd5+ {[%clk 0:01:40]}  Be6 {[%clk 0:02:22]} 25. Qd2 {[%clk 0:01:40]}  Rbd8 {[%clk 0:02:17]} 26. Qc1 {[%clk 0:01:31]}  Nf7 {[%clk 0:02:10]} 27. Bd2 {[%clk 0:01:21]}  Bxh3 {[%clk 0:02:07]} 28. Bf3 {[%clk 0:00:42]}  Bf5 {[%clk 0:02:00]} 29. Bc3 {[%clk 0:00:40]}  Rd4 {[%clk 0:01:55]} 30. Ng5 {[%clk 0:00:36]}  Nxg5 {[%clk 0:01:47]} 31. Rxe8+ {[%clk 0:00:34]}  Kf7 {[%clk 0:01:48]} 32. Rxh8 {[%clk 0:00:31]}  Nxf3+ {[%clk 0:01:44]} 33. Rxf3 {[%clk 0:00:29]}  Qxh8 {[%clk 0:01:44]} 34. Bxd4 {[%clk 0:00:21]}  Qxd4+ {[%clk 0:01:41]} 35. Kh2 {[%clk 0:00:21]}  Qh4+ {[%clk 0:01:41]} 36. Kg1 {[%clk 0:00:21]}  Qd4+ {[%clk 0:01:41]} 37. Qe3 {[%clk 0:00:21]}  Qxc4 {[%clk 0:01:29]} 38. Qb3 {[%clk 0:00:20]}  Qe6 {[%clk 0:01:25]} 39. Qxe6+ {[%clk 0:00:19]}  Kxe6 {[%clk 0:01:26]} 40. Rb3 {[%clk 0:00:19]}  Kd5 {[%clk 0:01:22]} 41. Rxb6 {[%clk 0:00:19]}  Bd3 {[%clk 0:01:22]} 42. Kf2 {[%clk 0:00:18]}  a5 {[%clk 0:01:21]} 43. Ke3 {[%clk 0:00:19]}  Bc2 {[%clk 0:01:21]} 44. b3 {[%clk 0:00:18]}  g5 {[%clk 0:01:21]} 45. g3 {[%clk 0:00:17]}  Bd1 {[%clk 0:01:20]} 46. Rb5 {[%clk 0:00:18]}  Bc2 {[%clk 0:01:19]} 47. Kd2 {[%clk 0:00:18]}  Be4 {[%clk 0:01:18]} 48. Rxa5 {[%clk 0:00:18]}  Kd4 {[%clk 0:01:19]} 49. Rb5 {[%clk 0:00:18]}  Bc6 {[%clk 0:01:18]} 50. Rb6 {[%clk 0:00:18]}  Bd5 {[%clk 0:01:17]} 51. a5 {[%clk 0:00:19]}  Ke5 {[%clk 0:01:18]} 52. a6 {[%clk 0:00:19]}  Bf3 {[%clk 0:01:18]} 53. a7 {[%clk 0:00:20]}  c4 {[%clk 0:01:18]} 54. Rb8 {[%clk 0:00:20]}  Kd4 {[%clk 0:01:19]} 55. bxc4 {[%clk 0:00:20]}  Kxc4 {[%clk 0:01:19]} 56. a8=Q {[%clk 0:00:20]}  Bxa8 {[%clk 0:01:20]} 57. Rxa8 {[%clk 0:00:21]} 1-0


[Site "https://www.chess.com"]

[Event "Titled Tuesday Blitz March 21 Early 2023"]
[White "Budrewicz, Krzysztof"]
[Black "Ashraf, Artin"]
[WhiteFideId "1127950"]
[BlackFideId "22514805"]
[WhiteElo "2230"]
[BlackElo "2188"]
[Result "0-1"]
[Round "10"]
[TimeControl "180+2"]
[Date "2023.03.21"]
[WhiteClock "0:00:40"]
[BlackClock "0:00:06"]

1. d4 {[%clk 0:03:00]}  Nf6 {[%clk 0:02:58]} 2. c4 {[%clk 0:03:01]}  g6 {[%clk 0:02:58]} 3. Nc3 {[%clk 0:03:00]}  Bg7 {[%clk 0:02:59]} 4. e4 {[%clk 0:03:01]}  O-O {[%clk 0:02:59]} 5. Nf3 {[%clk 0:03:01]}  d6 {[%clk 0:02:59]} 6. Be2 {[%clk 0:03:01]}  e5 {[%clk 0:02:58]} 7. Be3 {[%clk 0:03:01]}  Nc6 {[%clk 0:02:43]} 8. d5 {[%clk 0:02:59]}  Ne7 {[%clk 0:02:42]} 9. Nd2 {[%clk 0:02:59]}  Ne8 {[%clk 0:02:42]} 10. f3 {[%clk 0:02:56]}  f5 {[%clk 0:02:42]} 11. Qc2 {[%clk 0:02:56]}  c5 {[%clk 0:02:40]} 12. a3 {[%clk 0:02:48]}  f4 {[%clk 0:02:37]} 13. Bf2 {[%clk 0:02:48]}  g5 {[%clk 0:02:38]} 14. b4 {[%clk 0:02:40]}  b6 {[%clk 0:02:38]} 15. bxc5 {[%clk 0:02:41]}  bxc5 {[%clk 0:02:37]} 16. Rb1 {[%clk 0:02:40]}  h5 {[%clk 0:02:34]} 17. h3 {[%clk 0:02:37]}  Nf6 {[%clk 0:02:34]} 18. Qa4 {[%clk 0:02:33]}  a6 {[%clk 0:02:27]} 19. Qb3 {[%clk 0:02:29]}  g4 {[%clk 0:02:10]} 20. hxg4 {[%clk 0:02:29]}  hxg4 {[%clk 0:02:10]} 21. Kd1 {[%clk 0:02:26]}  Ra7 {[%clk 0:01:50]} 22. Kc2 {[%clk 0:02:24]}  g3 {[%clk 0:01:41]} 23. Be1 {[%clk 0:02:21]}  Rb7 {[%clk 0:01:40]} 24. Qa2 {[%clk 0:02:22]}  Qc7 {[%clk 0:01:18]} 25. Rxb7 {[%clk 0:02:21]}  Qxb7 {[%clk 0:01:16]} 26. Qb2 {[%clk 0:02:21]}  Qc7 {[%clk 0:01:15]} 27. Nb3 {[%clk 0:02:19]}  Bd7 {[%clk 0:01:15]} 28. Bd2 {[%clk 0:02:19]}  Rb8 {[%clk 0:01:14]} 29. Rb1 {[%clk 0:02:19]}  Ng6 {[%clk 0:01:09]} 30. Qc1 {[%clk 0:02:18]}  Bf8 {[%clk 0:01:03]} 31. Kd3 {[%clk 0:02:17]}  Be7 {[%clk 0:01:02]} 32. Na1 {[%clk 0:02:14]}  Rc8 {[%clk 0:00:58]} 33. Qb2 {[%clk 0:02:13]}  Nh4 {[%clk 0:00:57]} 34. Bf1 {[%clk 0:02:13]}  Qd8 {[%clk 0:00:56]} 35. Qb6 {[%clk 0:02:11]}  Ra8 {[%clk 0:00:53]} 36. Qxd8+ {[%clk 0:02:10]}  Bxd8 {[%clk 0:00:54]} 37. Nc2 {[%clk 0:02:02]}  Nh7 {[%clk 0:00:43]} 38. Ne1 {[%clk 0:02:02]}  Ng5 {[%clk 0:00:42]} 39. Be2 {[%clk 0:01:55]}  Kf8 {[%clk 0:00:31]} 40. Rb2 {[%clk 0:01:51]}  Ba5 {[%clk 0:00:28]} 41. Bd1 {[%clk 0:01:46]}  Ke8 {[%clk 0:00:26]} 42. Na4 {[%clk 0:01:36]}  Bxd2 {[%clk 0:00:23]} 43. Kxd2 {[%clk 0:01:34]}  Kd8 {[%clk 0:00:22]} 44. Ke2 {[%clk 0:01:29]}  Kc7 {[%clk 0:00:20]} 45. Kf1 {[%clk 0:01:27]}  Ng6 {[%clk 0:00:16]} 46. Nc3 {[%clk 0:01:28]}  Rh8 {[%clk 0:00:16]} 47. Ba4 {[%clk 0:01:19]}  Rh1+ {[%clk 0:00:14]} 48. Ke2 {[%clk 0:01:20]}  Bxa4 {[%clk 0:00:14]} 49. Nxa4 {[%clk 0:01:19]}  Nh4 {[%clk 0:00:15]} 50. Nc3 {[%clk 0:00:54]}  Rg1 {[%clk 0:00:13]} 51. Kd1 {[%clk 0:00:52]}  Ngxf3 {[%clk 0:00:10]} 52. gxf3 {[%clk 0:00:49]}  Nxf3 {[%clk 0:00:11]} 53. Re2 {[%clk 0:00:47]}  Rf1 {[%clk 0:00:10]} 54. Nb1 {[%clk 0:00:40]}  Nxe1 {[%clk 0:00:06]} 55. Rxe1 {[%clk 0:00:40]}  g2 {[%clk 0:00:05]} 56. Nd2 {[%clk 0:00:40]}  Rxe1+ {[%clk 0:00:05]} 57. Kxe1 {[%clk 0:00:40]}  g1=Q+ {[%clk 0:00:06]} 0-1


[Site "https://www.chess.com"]

[Event "Titled Tuesday Blitz March 21 Early 2023"]
[White "Kim, Sergey"]
[Black "Sattarov, Bobir"]
[WhiteFideId "13700570"]
[BlackFideId "14203081"]
[WhiteElo "2605"]
[BlackElo "2351"]
[Result "1/2-1/2"]
[Round "10"]
[TimeControl "180+2"]
[Date "2023.03.21"]
[WhiteClock "0:02:37"]
[BlackClock "0:02:29"]

1. d4 {[%clk 0:02:56]}  Nf6 {[%clk 0:02:59]} 2. c4 {[%clk 0:02:56]}  e6 {[%clk 0:03:00]} 3. Nc3 {[%clk 0:02:57]}  Bb4 {[%clk 0:02:59]} 4. Qc2 {[%clk 0:02:57]}  O-O {[%clk 0:02:58]} 5. a3 {[%clk 0:02:57]}  Bxc3+ {[%clk 0:02:58]} 6. Qxc3 {[%clk 0:02:57]}  d5 {[%clk 0:02:59]} 7. Nf3 {[%clk 0:02:57]}  dxc4 {[%clk 0:02:50]} 8. Qxc4 {[%clk 0:02:57]}  b6 {[%clk 0:02:50]} 9. g3 {[%clk 0:02:56]}  Ba6 {[%clk 0:02:43]} 10. Qc2 {[%clk 0:02:56]}  c5 {[%clk 0:02:37]} 11. dxc5 {[%clk 0:02:56]}  bxc5 {[%clk 0:02:37]} 12. Bg2 {[%clk 0:02:55]}  Nbd7 {[%clk 0:02:35]} 13. O-O {[%clk 0:02:55]}  Qb6 {[%clk 0:02:32]} 14. Rd1 {[%clk 0:02:47]}  h6 {[%clk 0:02:29]} 15. Bf4 {[%clk 0:02:37]} 1/2-1/2


[Site "https://www.chess.com"]

[Event "Titled Tuesday Blitz March 21 Early 2023"]
[White "Matinian, Nikita"]
[Black "Omelja, Artem"]
[WhiteFideId "24129100"]
[BlackFideId "14119846"]
[WhiteElo "2422"]
[BlackElo "2404"]
[Result "1-0"]
[Round "10"]
[TimeControl "180+2"]
[Date "2023.03.21"]
[WhiteClock "0:01:00"]
[BlackClock "0:00:02"]

1. e4 {[%clk 0:02:55]}  c5 {[%clk 0:02:59]} 2. Nf3 {[%clk 0:02:51]}  Nc6 {[%clk 0:02:58]} 3. Bb5 {[%clk 0:02:48]}  g6 {[%clk 0:02:58]} 4. Bxc6 {[%clk 0:02:48]}  bxc6 {[%clk 0:02:59]} 5. O-O {[%clk 0:02:48]}  Bg7 {[%clk 0:02:59]} 6. Re1 {[%clk 0:02:47]}  e5 {[%clk 0:02:59]} 7. b4 {[%clk 0:02:45]}  cxb4 {[%clk 0:02:56]} 8. a3 {[%clk 0:02:45]}  Ne7 {[%clk 0:02:56]} 9. axb4 {[%clk 0:02:45]}  O-O {[%clk 0:02:57]} 10. d3 {[%clk 0:02:45]}  Qc7 {[%clk 0:02:55]} 11. Nbd2 {[%clk 0:02:44]}  d5 {[%clk 0:02:54]} 12. Bb2 {[%clk 0:02:43]}  f6 {[%clk 0:02:50]} 13. h3 {[%clk 0:02:32]}  Bb7 {[%clk 0:02:42]} 14. Ra5 {[%clk 0:02:22]}  Rfd8 {[%clk 0:02:33]} 15. Qa1 {[%clk 0:02:20]}  Qb6 {[%clk 0:02:24]} 16. Nb3 {[%clk 0:02:07]}  Nc8 {[%clk 0:01:35]} 17. Nc5 {[%clk 0:02:01]}  Nd6 {[%clk 0:01:35]} 18. Ne6 {[%clk 0:01:59]}  Re8 {[%clk 0:01:22]} 19. Nxg7 {[%clk 0:01:50]}  Kxg7 {[%clk 0:01:23]} 20. Nxe5 {[%clk 0:01:50]}  Qd8 {[%clk 0:00:21]} 21. Ng4 {[%clk 0:01:46]}  Re6 {[%clk 0:00:22]} 22. Nxf6 {[%clk 0:01:43]}  Rxf6 {[%clk 0:00:19]} 23. Bxf6+ {[%clk 0:01:42]}  Qxf6 {[%clk 0:00:20]} 24. Qxf6+ {[%clk 0:01:42]}  Kxf6 {[%clk 0:00:21]} 25. e5+ {[%clk 0:01:43]}  Ke6 {[%clk 0:00:22]} 26. exd6+ {[%clk 0:01:43]}  Kxd6 {[%clk 0:00:23]} 27. c4 {[%clk 0:01:43]}  a6 {[%clk 0:00:20]} 28. g3 {[%clk 0:01:25]}  Rf8 {[%clk 0:00:19]} 29. f4 {[%clk 0:01:25]}  h5 {[%clk 0:00:18]} 30. h4 {[%clk 0:01:23]}  Rf7 {[%clk 0:00:18]} 31. Re5 {[%clk 0:01:23]}  Rf8 {[%clk 0:00:17]} 32. Ra1 {[%clk 0:01:18]}  Bc8 {[%clk 0:00:14]} 33. c5+ {[%clk 0:01:18]}  Kc7 {[%clk 0:00:11]} 34. Re7+ {[%clk 0:01:17]}  Kb8 {[%clk 0:00:11]} 35. Rae1 {[%clk 0:01:14]}  Rf6 {[%clk 0:00:05]} 36. Re8 {[%clk 0:01:09]}  Kc7 {[%clk 0:00:05]} 37. R1e7+ {[%clk 0:01:06]}  Bd7 {[%clk 0:00:06]} 38. Rg8 {[%clk 0:01:04]}  Re6 {[%clk 0:00:02]} 39. Rxe6 {[%clk 0:01:04]}  Bxe6 {[%clk 0:00:03]} 40. Rxg6 {[%clk 0:01:05]}  Bf5 {[%clk 0:00:04]} 41. Rg7+ {[%clk 0:01:04]}  Kd8 {[%clk 0:00:04]} 42. d4 {[%clk 0:01:05]}  Be4 {[%clk 0:00:05]} 43. Rg5 {[%clk 0:01:03]}  Bf3 {[%clk 0:00:04]} 44. Kf2 {[%clk 0:01:04]}  Bd1 {[%clk 0:00:05]} 45. Rg7 {[%clk 0:01:02]}  Bc2 {[%clk 0:00:03]} 46. Ra7 {[%clk 0:01:00]}  Bd3 {[%clk 0:00:03]} 47. Ke3 {[%clk 0:01:01]}  Bf1 {[%clk 0:00:02]} 48. Rh7 {[%clk 0:01:01]}  a5 {[%clk 0:00:02]} 49. bxa5 {[%clk 0:01:00]} 1-0


[Site "https://www.chess.com"]

[Event "Titled Tuesday Blitz March 21 Early 2023"]
[White "Degenbaev, Aziz"]
[Black "Lewtak, Damian"]
[WhiteFideId "13802640"]
[BlackFideId "1141724"]
[WhiteElo "2152"]
[BlackElo "2302"]
[Result "1-0"]
[Round "10"]
[TimeControl "180+2"]
[Date "2023.03.21"]
[WhiteClock "0:00:17"]
[BlackClock "0:00:01"]

1. e4 {[%clk 0:03:00]}  c6 {[%clk 0:02:59]} 2. d4 {[%clk 0:03:00]}  d5 {[%clk 0:02:59]} 3. e5 {[%clk 0:03:01]}  Bf5 {[%clk 0:02:59]} 4. Nd2 {[%clk 0:03:02]}  h5 {[%clk 0:02:58]} 5. Nb3 {[%clk 0:03:01]}  e6 {[%clk 0:02:58]} 6. Nf3 {[%clk 0:03:02]}  Nd7 {[%clk 0:02:58]} 7. Be2 {[%clk 0:03:02]}  a6 {[%clk 0:02:57]} 8. O-O {[%clk 0:02:55]}  Be7 {[%clk 0:02:57]} 9. Bd2 {[%clk 0:02:53]}  g5 {[%clk 0:02:57]} 10. Ne1 {[%clk 0:02:52]}  Rc8 {[%clk 0:02:53]} 11. Rc1 {[%clk 0:02:51]}  h4 {[%clk 0:02:52]} 12. h3 {[%clk 0:02:50]}  f6 {[%clk 0:02:49]} 13. Bh5+ {[%clk 0:02:42]}  Kf8 {[%clk 0:02:49]} 14. f4 {[%clk 0:02:43]}  fxe5 {[%clk 0:02:35]} 15. fxe5 {[%clk 0:02:37]}  Kg7 {[%clk 0:02:30]} 16. Bg4 {[%clk 0:02:33]}  Nh6 {[%clk 0:02:24]} 17. Bxf5 {[%clk 0:02:21]}  Nxf5 {[%clk 0:02:15]} 18. Qg4 {[%clk 0:02:19]}  Rf8 {[%clk 0:01:46]} 19. Nf3 {[%clk 0:02:11]}  Kg6 {[%clk 0:01:41]} 20. Na5 {[%clk 0:01:22]}  Rb8 {[%clk 0:01:24]} 21. c4 {[%clk 0:01:14]}  Nb6 {[%clk 0:01:09]} 22. c5 {[%clk 0:00:51]}  Nc4 {[%clk 0:01:08]} 23. Nxc4 {[%clk 0:00:49]}  dxc4 {[%clk 0:01:09]} 24. Rxc4 {[%clk 0:00:47]}  b6 {[%clk 0:00:34]} 25. d5 {[%clk 0:00:31]}  cxd5 {[%clk 0:00:30]} 26. Nxh4+ {[%clk 0:00:28]}  Nxh4 {[%clk 0:00:22]} 27. Qxe6+ {[%clk 0:00:28]}  Kg7 {[%clk 0:00:20]} 28. Rxf8 {[%clk 0:00:21]}  Qxf8 {[%clk 0:00:17]} 29. Rxh4 {[%clk 0:00:21]}  Bxc5+ {[%clk 0:00:07]} 30. Kh2 {[%clk 0:00:21]}  gxh4 {[%clk 0:00:07]} 31. Bh6+ {[%clk 0:00:21]}  Kh7 {[%clk 0:00:06]} 32. Bxf8 {[%clk 0:00:22]}  Rxf8 {[%clk 0:00:06]} 33. Qxd5 {[%clk 0:00:20]}  Bf2 {[%clk 0:00:03]} 34. Qd7+ {[%clk 0:00:19]}  Kg8 {[%clk 0:00:02]} 35. Qg4+ {[%clk 0:00:18]}  Kh8 {[%clk 0:00:01]} 36. Qh5+ {[%clk 0:00:17]}  Kg8 {[%clk 0:00:01]} 37. Qg6+ {[%clk 0:00:17]}  Kh8 {[%clk 0:00:01]} 38. e6 {[%clk 0:00:18]}  Bg3+ {[%clk 0:00:01]} 39. Kg1 {[%clk 0:00:18]}  Rf7 {[%clk 0:00:01]} 40. exf7 {[%clk 0:00:17]} 1-0


[Site "https://www.chess.com"]